[Event "American Cup Open Elimination 2024"]
[Site "Saint Louis"]
[Date "2024.03.16"]
[Round "2.6"]
[White "Dominguez Perez, Leinier"]
[Black "Caruana, Fabiano"]
[Result "0-1"]
[ECO "C70"]
[WhiteElo "2749"]
[BlackElo "2804"]
[Annotator "TA"]
[PlyCount "82"]
[EventDate "2024.03.11"]
[EventType "k.o."]
[EventCountry "USA"]
[SourceTitle "playchess.com"]
[Source "ChessBase"]
[SourceQuality "1"]
[TimeControl "600+5"]

{[%evp 9,82,22,38,41,34,28,26,27,35,16,81,70,42,42,34,13,0,0,0,0,0,0,5,-7,-4,-22,-16,-29,-30,-40,-7,-3,0,-6,0,-16,0,-8,-14,-10,-8,-12,-9,-5,0,-15,0,-5,0,0,-10,0,0,-11,0,-7,0,-417,0,0,0,-20,0,-64,-52,-145,-143,-164,0,-74,-74,-87,0,-1070,-421]} 1. e4 {[%emt 0:07:07]} e5 {[%emt 0:07:07]} 2. Nf3 {[%emt 0:00:03]} Nc6 {[%emt 0:00:04]} 3. Bb5 {[%emt 0:00:04]} a6 {[%emt 0:00:04]} 4. Ba4 {[%emt 0:00:04]} Nge7 {[%emt 0:00:04]} 5. c3 {[%emt 0:00:10]} Ng6 {[%emt 0:00:04]} 6. d4 {[%emt 0:00:08]} exd4 {[%emt 0:00:04]} 7. cxd4 {[%emt 0:00:04]} Bb4+ {[%emt 0:00:05]} 8. Nc3 {[%emt 0:00:04] White has an edge.} d5 {[%emt 0:00:07]} 9. O-O {[%emt 0:00:25]} Bxc3 {[%emt 0:00:16]} (9... dxe4 $1 $11 {keeps the balance.} 10. Nxe4 O-O) 10. exd5 {[%emt 0:00:11]} Qxd5 {[%emt 0:00:05]} 11. bxc3 {[%emt 0:00:04][%cal Oc3c4] [#] And now c4! would win.} O-O {[%emt 0:00:05]} 12. h3 {[%emt 0:00:22] Wards off Bg4} Na5 {[%emt 0:00:12]} 13. Re1 {[%emt 0:00:24]} b5 {[%emt 0:00:17]} 14. Bc2 {[%emt 0:00:32]} Bf5 {[%emt 0:00:05] Prevents Be4} 15. Bxf5 {[%emt 0:00:26]} Qxf5 {[%emt 0:00:04]} 16. a4 {[%emt 0:00:04]} Nc4 {[%emt 0:00:12]} 17. Qe2 {[%emt 0:00:12]} h6 {[%emt 0:00:09]} 18. Qe4 {[%emt 0:00:30]} Qxe4 {[%emt 0:00:06]} 19. Rxe4 {[%emt 0:00:04]} c6 {[%emt 0:00:14]} 20. h4 {[%emt 0:00:11]} h5 {[%emt 0:00:28]} 21. g3 {[%emt 0:00:09]} f6 {[%emt 0:00:17]} 22. Re6 {[%emt 0:00:08]} Rfc8 {[%emt 0:00:06]} 23. axb5 {[%emt 0:00:08]} axb5 {[%emt 0:00:04]} 24. Rxa8 {[%emt 0:00:06]} Rxa8 {[%emt 0:00:04]} 25. Kg2 {[%emt 0:00:04]} (25. Rxc6 $2 {is the wrong capture.} Ra1 26. Kg2 (26. Rc8+ $2 Kf7 $19) 26... Rxc1 $19) 25... Rc8 {[%emt 0:00:15][%cal Ba8c8,Bc8c7,Bc7e7][%mdl 32]} 26. Re2 {[%emt 0:00:04]} Kf7 {[%emt 0:00:07]} 27. Ra2 {[%emt 0:00:04]} Rc7 {[%emt 0:00:18]} 28. Ra8 {[%emt 0:00:10]} Ne7 {[%emt 0:00:06]} 29. Ng1 {[%emt 0:00:05]} Nd5 {[%emt 0:00:06]} 30. Ne2 {[%emt 0:00:04]} Ncb6 {[%emt 0:00:09] A dynamic duo of knights.} 31. Ra6 {[%emt 0:00:08]} Re7 {[%emt 0:00:19]} 32. Kf1 {[%emt 0:00:03]} Rb7 {[%emt 0:00:05]} 33. Ba3 $2 {[%emt 0:00:08][%mdl 8192]} (33. f3 $11 {and White is okay.}) 33... Rc7 $2 {[%emt 0:00:13]} ({Black should try} 33... Nc7 $19 34. Rxb6 Rxb6) 34. Bd6 $11 {[%emt 0:00:11]} Rc8 {[%emt 0:00:04]} 35. Ra7+ {[%emt 0:00:05]} Kg6 {[%emt 0:00:09]} 36. Rb7 {[%emt 0:00:14]} (36. Nf4+ $11 Nxf4 37. Bxf4) 36... Ra8 {[%emt 0:00:19]} 37. Bc5 {[%emt 0:00:05] [#]} (37. Kg2 $15) 37... Na4 $1 $17 {[%emt 0:00:09]} 38. Bb4 {[%emt 0:00:04]} Nab6 $2 {[%emt 0:00:06]} (38... Nb2 $19 39. Kg2 Nd3) 39. Kg2 {[%emt 0:00:04]} (39. Bc5 $11 Nc4 40. Nf4+ Nxf4 41. gxf4) 39... Nc4 {[%emt 0:00:11]} 40. Kf3 {[%emt 0:00:07]} Re8 {[%emt 0:00:08] Black is more active.} (40... Nd2+ $17 41. Kg2 Ra1) 41. Ra7 $2 {[%emt 0:00:05][%mdl 8192]} (41. Nf4+ $11 Nxf4 42. Kxf4) 41... Nd2+ {[%emt 0:00:05] Weighted Error Value: White=0.43/Black=0.25 (precise) .  Loses game:     	White=2     	---        Missed win:     	---       	Black=2      Mistake:       	White=3     	Black=2      Inaccurate:     	---       	Black=1      OK:         	White=12    	Black=12     Best:        	---       	Black=2} 0-1

[Event "American Cup Open Elimination 2024"]
[Site "Saint Louis"]
[Date "2024.03.17"]
[Round "3.1"]
[White "Caruana, Fabiano"]
[Black "So, Wesley"]
[Result "1/2-1/2"]
[ECO "E46"]
[WhiteElo "2804"]
[BlackElo "2789"]
[Annotator "TA"]
[PlyCount "116"]
[EventDate "2024.03.11"]
[EventType "k.o."]
[EventCountry "USA"]
[SourceTitle "playchess.com"]
[Source "ChessBase"]
[SourceQuality "1"]
[TimeControl "1500+10"]

{[%evp 37,116,8,0,0,0,-9,-2,-13,-23,-57,-58,-71,-76,-89,-85,-105,-70,-67,-56,-80,-74,-83,-86,-67,-68,-83,-85,-88,0,0,0,-12,-25,-147,-71,-56,0,0,0,0,0,0,0,0,0,0,0,0,0,0,0,0,0,0,0,0,0,0,0,0,0,0,0,0,0,0,0,0,0,0,0,0,0,0,0,0,0,0,0,0,0]} 1. d4 {[%emt 0:10:02]} Nf6 {[%emt 0:10:02]} 2. c4 {[%emt 0:00:01]} e6 {[%emt 0:00:01]} 3. Nc3 {[%emt 0:00:02]} Bb4 {[%emt 0:00:02]} 4. e3 {[%emt 0:00:01]} O-O {[%emt 0:00:02]} 5. Nge2 {[%emt 0:00:02]} d5 {[%emt 0:00:10]} 6. a3 {[%emt 0:00:04]} Be7 {[%emt 0:00:02]} 7. cxd5 {[%emt 0:00:02]} exd5 {[%emt 0:00:02]} 8. Nf4 {[%emt 0:00:01]} c6 {[%emt 0:00:02]} 9. Bd3 {[%emt 0:00:02]} Re8 {[%emt 0:00:02]} 10. O-O {[%emt 0:00:06]} Nbd7 {[%emt 0:00:01]} 11. Bd2 {[%emt 0:00:38] E46: Nimzo-Indian: Rubinstein: 4 e3 0-0 5 Ne2 without early Bd3.} Nf8 {[%emt 0:00:04]} 12. f3 {[%emt 0:00:04]} Ne6 {[%emt 0:00:54]} 13. Nxe6 {[%emt 0:00:05]} Bxe6 {[%emt 0:00:02]} 14. Qe1 {[%emt 0:00:14]} c5 $146 {[%emt 0:00:24]} ({Predecessor:} 14... a5 15. Qf2 Rc8 16. Rad1 b6 17. Ne2 Bd6 18. h3 c5 19. dxc5 bxc5 20. Bc3 Rb8 {½-½ Antoshin,V-Kholmov,R Moscow-ch49 1971}) 15. Qf2 {[%emt 0:00:04]} cxd4 {[%emt 0:03:48]} 16. exd4 {[%emt 0:00:02]} Nd7 {[%emt 0:00:33]} 17. Ne2 {[%emt 0:02:09]} Nb6 {[%emt 0:01:07]} 18. Nf4 {[%emt 0:00:27]} Qd7 {[%emt 0:01:07]} 19. Nxe6 {[%emt 0:03:05]} Qxe6 {[%emt 0:00:04]} 20. Rfe1 {[%emt 0:00:01]} Qd7 {[%emt 0:00:06]} 21. Bf4 {[%emt 0:00:24]} Nc4 {[%emt 0:01:17]} 22. b3 {[%emt 0:02:25]} Na5 {[%emt 0:00:46]} 23. Bc2 {[%emt 0:03:48]} g6 {[%emt 0:00:29]} 24. h4 {[%emt 0:00:53]} Nc6 {[%emt 0:00:03]} 25. b4 {[%emt 0:00:12]} Bf6 {[%emt 0:00:30]} 26. Rxe8+ {[%emt 0:01:44]} Rxe8 {[%emt 0:00:02]} 27. Rd1 {[%emt 0:00:01]} Qd8 {[%emt 0:00:52]} 28. g3 {[%emt 0:00:43]} Qb6 {[%emt 0:00:24]} 29. Ba4 {[%emt 0:00:41]} Qa6 {[%emt 0:00:28]} (29... Bxd4 $2 30. Rxd4 Rd8 (30... Qxd4 $2 31. Qxd4 Nxd4 32. Bxe8 $18) 31. Rd2 $18) 30. Bxc6 {[%emt 0:00:02]} bxc6 {[%emt 0:00:09]} 31. Qb2 {[%emt 0:00:57]} Re2 {[%emt 0:00:29]} 32. Qc3 {[%emt 0:00:01] [#]} Rg2+ {[%emt 0:01:33]} (32... Ra2 $1 $17 33. Qe1 (33. Rd3 Bg7) 33... Re2 (33... Qxa3 $2 {is the wrong capture.} 34. Bh6 $18) (33... Rxa3 $2 34. Qe8+ Kg7 35. Bd6 $18)) 33. Kxg2 $11 {[%emt 0:00:23]} Qe2+ {[%emt 0:00:01]} 34. Kh3 {[%emt 0:00:02]} Qxd1 {[%emt 0:00:02]} 35. Be5 {[%emt 0:00:40]} (35. Bh6 $1 $11 {keeps the balance.} Qf1+ (35... Bxd4 $2 {perishes.} 36. Qxc6 Qh1+ 37. Kg4 $18) 36. Kh2) 35... Qf1+ {[%emt 0:02:43]} (35... Bxe5 $142 36. dxe5 h5) 36. Kg4 $17 {[%emt 0:00:20] [#]} Qb1 {[%emt 0:00:52]} ({Black should try} 36... Bxe5 $1 $15 37. dxe5 Qb1) 37. Kf4 $11 {[%emt 0:00:11]} Qf5+ {[%emt 0:01:23]} 38. Ke3 {[%emt 0:00:01]} Qe6 {[%emt 0:00:01]} 39. Kf2 {[%emt 0:00:19]} Bd8 {[%emt 0:00:03]} 40. Qe3 {[%emt 0:00:14]} Bb6 {[%emt 0:00:36]} 41. Qf4 {[%emt 0:00:13]} Bd8 {[%emt 0:00:17]} 42. Bc7 {[%emt 0:00:01]} Bf6 {[%emt 0:00:11]} 43. Bd6 {[%emt 0:00:24]} a6 {[%emt 0:00:08]} 44. Bb8 {[%emt 0:00:07]} h5 {[%emt 0:00:09]} 45. Be5 {[%emt 0:00:03]} Be7 {[%emt 0:00:05]} 46. Qh6 {[%emt 0:00:03]} Bf6 {[%emt 0:00:00]} 47. Qf4 {[%emt 0:00:24]} Be7 {[%emt 0:00:05]} 48. Qh6 {[%emt 0:00:05]} Bf6 {[%emt 0:00:00]} 49. Bxf6 {[%emt 0:00:05]} Qxf6 {[%emt 0:00:01]} 50. Qe3 {[%emt 0:00:01]} Qf5 {[%emt 0:00:31]} 51. Qe2 {[%emt 0:00:38]} Qh3 {[%emt 0:00:16]} 52. Qe8+ {[%emt 0:00:07]} Kg7 {[%emt 0:00:02]} 53. Qe5+ {[%emt 0:00:01]} Kh7 {[%emt 0:00:12]} 54. Qc7 {[%emt 0:00:12]} Qh2+ {[%emt 0:00:08]} 55. Kf1 {[%emt 0:00:01]} Qh1+ {[%emt 0:00:12]} 56. Kf2 {[%emt 0:00:01]} Qh2+ {[%emt 0:00:01]} 57. Kf1 {[%emt 0:00:09]} Qh1+ {[%emt 0:00:01]} 58. Kf2 {[%emt 0:00:00]} Qh2+ 1/2-1/2

[Event "American Cup Open Elimination 2024"]
[Site "Saint Louis"]
[Date "2024.03.17"]
[Round "3.2"]
[White "So, Wesley"]
[Black "Caruana, Fabiano"]
[Result "0-1"]
[ECO "D00"]
[WhiteElo "2789"]
[BlackElo "2804"]
[Annotator "TA"]
[PlyCount "126"]
[EventDate "2024.03.11"]
[EventType "k.o."]
[EventCountry "USA"]
[SourceTitle "playchess.com"]
[Source "ChessBase"]
[SourceQuality "1"]
[TimeControl "1500+10"]

{[%evp 58,126,41,32,39,34,42,27,33,25,47,28,17,0,0,0,0,-73,-79,-72,-75,-114,-106,-126,-117,-106,67,-21,-14,-23,-6,-22,-23,-18,-13,-13,0,0,-1,-3,-10,-208,-204,-183,-184,-187,-201,-201,-216,-201,-195,-353,-355,-500,-502,-492,-437,-437,-425,-660,-650,-669,-676,-728,-684,-29963,-29964,-29963,-29964,-12705,-1426]} 1. d4 {[%emt 0:10:02]} Nf6 {[%emt 0:10:01]} 2. Nc3 {[%emt 0:00:01]} d5 {[%emt 0:00:02]} 3. Bf4 {[%emt 0:00:02]} Bf5 {[%emt 0:00:05]} 4. e3 {[%emt 0:00:04]} e6 {[%emt 0:00:02]} 5. Bd3 {[%emt 0:00:01]} Bg6 {[%emt 0:00:07]} 6. h4 {[%emt 0:00:02] D00: 1 d4 d5: Unusual lines.} Bd6 {[%emt 0:00:14]} 7. h5 {[%emt 0:00:09]} Bxd3 {[%emt 0:00:01]} 8. Qxd3 {[%emt 0:00:01]} h6 {[%emt 0:01:03]} 9. O-O-O {[%emt 0:00:26]} Nbd7 $146 {[%emt 0:01:15]} ({Predecessor:} 9... Nc6 10. Nf3 Qe7 11. Bxd6 Qxd6 12. Kb1 a6 13. e4 Nb4 14. Qe2 dxe4 15. Ne5 O-O {1-0 Erigaisi,A (2701)-Yu,Y (2729) Chessable Masters Div 2 Lose rapid 2023 (2.1)}) 10. Nge2 {[%emt 0:01:12]} a6 {[%emt 0:00:09]} 11. f3 {[%emt 0:01:35]} Qe7 {[%emt 0:00:18]} 12. g4 {[%emt 0:00:24]} O-O-O {[%emt 0:00:24]} 13. Kb1 {[%emt 0:01:43]} Kb8 {[%emt 0:00:05]} 14. Bxd6 {[%emt 0:00:55]} Qxd6 {[%emt 0:00:02]} 15. e4 {[%emt 0:00:17]} dxe4 {[%emt 0:00:03]} 16. Nxe4 {[%emt 0:00:03]} Qb6 {[%emt 0:00:42]} 17. Nd2 {[%emt 0:01:03]} Ne5 {[%emt 0:00:37]} 18. Qb3 {[%emt 0:01:23]} Qxb3 {[%emt 0:00:02]} 19. axb3 {[%emt 0:00:02]} Nc6 {[%emt 0:00:01]} 20. Nc4 {[%emt 0:00:12]} Nd5 {[%emt 0:00:26]} 21. c3 {[%emt 0:00:27]} Rhf8 {[%emt 0:00:40]} 22. Ng3 {[%emt 0:00:20]} b6 {[%emt 0:00:23]} 23. b4 {[%emt 0:00:10]} Kb7 {[%emt 0:00:03]} 24. Rhe1 {[%emt 0:00:18]} Nf4 {[%emt 0:00:18]} 25. Re4 {[%emt 0:00:24]} Nd5 {[%emt 0:00:13]} 26. Kc2 {[%emt 0:00:42]} Ra8 {[%emt 0:00:11]} 27. Ra1 {[%emt 0:00:25]} Rfe8 {[%emt 0:00:23]} 28. Kb3 {[%emt 0:00:13]} Rf8 {[%emt 0:01:50]} 29. Ne5 {[%emt 0:03:11]} Nxe5 {[%emt 0:00:11]} 30. Rxe5 {[%emt 0:00:01]} Rfd8 {[%emt 0:00:28]} 31. Ne4 {[%emt 0:00:34]} Ne7 {[%emt 0:00:52]} 32. Nf2 {[%emt 0:00:04]} Nc6 {[%emt 0:00:08]} 33. Re4 {[%emt 0:00:04]} Rd5 {[%emt 0:00:08]} 34. Nd3 {[%emt 0:00:04]} a5 {[%emt 0:00:14]} 35. Rf4 {[%emt 0:01:36]} f6 {[%emt 0:01:23]} 36. Re4 {[%emt 0:00:02]} e5 {[%emt 0:00:05]} 37. b5 {[%emt 0:00:09]} (37. bxa5 $11 {remains equal.} f5 (37... Nxa5+ 38. Kc2 $17) (37... exd4 38. a6+ Rxa6 39. Rxa6 $11) (37... Raxa5 38. Rxa5 Nxa5+ 39. Kc2 $11) 38. Ree1 (38. gxf5 exd4 39. cxd4 Nxa5+ 40. Kc2 Rf8 $11) 38... Nxa5+ (38... exd4 39. axb6 Rxa1 40. Rxa1 $11) 39. Kc2 exd4 40. b4) 37... Rxb5+ $17 {[%emt 0:01:57]} 38. Kc4 {[%emt 0:00:01]} Ka6 {[%emt 0:00:01]} 39. d5 {[%emt 0:00:03]} Na7 {[%emt 0:00:01]} 40. f4 {[%emt 0:00:07]} Rd8 $1 {[%emt 0:01:47]} 41. fxe5 {[%emt 0:00:08] [#]} Kb7 $2 {[%emt 0:00:00]} ({Black should play} 41... c6 $1 $17 {[%cal Rc6d5]} 42. dxc6 Nxc6 43. exf6 Rc8 44. fxg7 Ne5+ 45. Kd4 Rd8+ 46. Ke3 Rxd3+ (46... Nxd3 47. Rd1 $16) 47. Kf2 Rxb2+ 48. Re2 Nxg4+ 49. Kf1 Rf3+ 50. Kg2 Rxe2+ 51. Kxf3 Re8 (51... Rf2+ $2 52. Kg3 $18) 52. Kxg4 Rg8) 42. e6 {[%emt 0:00:55]} (42. exf6 $14 gxf6 (42... Rbxd5 $2 {loses.} 43. f7 $18) 43. Rd4) 42... Rbxd5 $11 {[%emt 0:00:13]} 43. e7 {[%emt 0:00:11]} b5+ {[%emt 0:00:01]} 44. Kb3 {[%emt 0:00:00]} Re8 {[%emt 0:00:07]} (44... Rxd3 $2 {is the wrong capture.} 45. exd8=N+ (45. e8=B $2 {too greedy.} Kb6 $19) 45... Rxd8 46. Rxa5 $18) 45. Nf4 {[%emt 0:00:09]} Rd7 {[%emt 0:01:33]} 46. Ng6 $1 {[%emt 0:00:32]} Nc6 {[%emt 0:00:09]} 47. Rae1 {[%emt 0:00:17]} Rd2 {[%emt 0:00:59]} 48. Re6 {[%emt 0:00:22]} a4+ {[%emt 0:00:12]} 49. Ka3 $2 {[%emt 0:00:10] [#]} (49. Ka2 $1 $11 {and White is okay.}) 49... b4+ $1 $19 {[%emt 0:00:10]} 50. cxb4 {[%emt 0:00:25]} Nd4 {[%emt 0:00:09]} 51. R6e4 {[%emt 0:00:29]} Nc2+ {[%emt 0:00:03]} 52. Kxa4 {[%emt 0:00:00]} Nxe1 {[%emt 0:00:02]} 53. Rxe1 {[%emt 0:00:01]} Rxb2 {[%emt 0:00:03]} 54. Kb5 $2 {[%emt 0:00:25]} (54. Nh4) 54... Rc2 $19 {[%emt 0:00:13]} 55. Ka4 {[%emt 0:00:16]} (55. Rd1 $142 c6+ 56. Ka4) 55... Rc3 $19 {[%emt 0:00:09]} 56. b5 {[%emt 0:00:18]} Rc4+ {[%emt 0:00:07]} 57. Kb3 {[%emt 0:00:01]} Rxg4 {[%emt 0:00:02]} 58. Kc3 {[%emt 0:00:37]} (58. Rd1 $142 Rxg6 59. hxg6) 58... Rg5 $19 {[%emt 0:00:24]} 59. Nf4 {[%emt 0:00:01]} Kc8 {[%emt 0:00:09]} 60. Kc4 {[%emt 0:00:16]} Rg4 {[%emt 0:00:04]} 61. Kd5 {[%emt 0:00:21]} Rxf4 {[%emt 0:00:12]} 62. Ke6 {[%emt 0:00:01]} Rd4 {[%emt 0:00:05]} 63. Ra1 {[%emt 0:00:08]} Re4+ {[%emt 0:00:03]} 0-1

[Event "American Cup Open Elimination 2024"]
[Site "Saint Louis"]
[Date "2024.03.17"]
[Round "3.3"]
[White "So, Wesley"]
[Black "Caruana, Fabiano"]
[Result "1-0"]
[ECO "B40"]
[WhiteElo "2789"]
[BlackElo "2804"]
[Annotator "TA"]
[PlyCount "131"]
[EventDate "2024.03.11"]
[EventType "k.o."]
[EventCountry "USA"]
[SourceTitle "playchess.com"]
[Source "ChessBase"]
[SourceQuality "1"]
[TimeControl "1500+10"]

{[%evp 68,131,-60,-56,-54,-62,-59,-39,20,25,26,0,18,13,21,13,33,0,23,-75,0,0,0,0,8,10,61,63,64,61,66,66,64,69,73,66,66,74,60,71,196,197,337,326,353,254,473,426,586,533,6527,6593,6499,5603,5509,720,706,519,29980,29981,29983,29984,29988,29989,29989,29990]} 1. e4 {[%emt 0:10:01]} c5 {[%emt 0:10:01]} 2. Nf3 {[%emt 0:00:01]} e6 {[%emt 0:00:01]} 3. Bd3 {[%emt 0:00:07]} d5 {[%emt 0:00:38]} 4. exd5 {[%emt 0:00:05]} exd5 {[%emt 0:00:01]} 5. O-O {[%emt 0:00:03]} Nf6 {[%emt 0:00:17]} 6. Bb5+ {[%emt 0:00:08] B40: Sizilianisch (Klassisches System mit e7-e6).} Bd7 {[%emt 0:00:05]} 7. Bxd7+ {[%emt 0:00:05]} Nbxd7 {[%emt 0:00:11]} 8. d4 {[%emt 0:00:01]} Be7 {[%emt 0:00:05]} 9. dxc5 {[%emt 0:00:56]} Nxc5 {[%emt 0:00:02]} 10. Nd4 {[%emt 0:00:19]} O-O {[%emt 0:00:02]} 11. Nf5 {[%emt 0:00:34]} Ne6 $146 {[%emt 0:00:11]} ({Predecessor:} 11... Re8 12. Nc3 Bf8 13. Bg5 h6 14. Bh4 g6 15. Qd4 g5 {½-½ Malik,J (2257)-Talla,V (2387) CZE-chT 1213 2012 (9.8)}) 12. Be3 {[%emt 0:00:22]} Re8 {[%emt 0:00:31]} 13. Nc3 {[%emt 0:01:07]} Bf8 {[%emt 0:00:24]} 14. Qf3 {[%emt 0:00:55]} Bb4 {[%emt 0:02:49]} 15. Ne2 {[%emt 0:00:39]} Bc5 {[%emt 0:00:57]} 16. Rad1 {[%emt 0:04:23]} Qb6 {[%emt 0:00:11]} 17. Nh6+ {[%emt 0:01:21]} Kf8 {[%emt 0:04:15]} 18. Bc1 {[%emt 0:00:12]} Rad8 {[%emt 0:00:46]} 19. b3 {[%emt 0:03:26]} Qc6 {[%emt 0:01:31]} 20. Nf5 {[%emt 0:00:38]} Ne4 {[%emt 0:00:48]} 21. Bb2 {[%emt 0:00:56]} g6 {[%emt 0:00:18]} 22. Nfd4 {[%emt 0:00:31]} Nxd4 {[%emt 0:00:02]} 23. Nxd4 {[%emt 0:00:01]} Qf6 {[%emt 0:01:37]} 24. Qd3 {[%emt 0:00:05]} Kg8 {[%emt 0:00:13]} 25. Ba1 {[%emt 0:00:09]} h5 {[%emt 0:00:24]} 26. g3 {[%emt 0:00:10]} h4 {[%emt 0:00:27]} 27. Nf3 {[%emt 0:00:15]} Qb6 {[%emt 0:00:03]} 28. Nd4 {[%emt 0:00:13]} Bf8 {[%emt 0:00:25]} 29. gxh4 {[%emt 0:00:11]} Bg7 {[%emt 0:00:19]} 30. h5 {[%emt 0:00:08]} Re5 {[%emt 0:00:22]} 31. hxg6 {[%emt 0:00:02]} Qxg6+ {[%emt 0:00:09]} 32. Kh1 {[%emt 0:00:00]} Rh5 {[%emt 0:00:02]} 33. Nf3 {[%emt 0:00:45]} Bxa1 34. Rxa1 {[%emt 0:00:01]} Rh3 $2 {[%emt 0:00:11]} (34... Re8 $19 35. Rae1 Re6 36. Rxe4 Qxe4 (36... dxe4 37. Qd8+ Kh7 38. Rg1 $11) 37. Qxe4 dxe4) 35. Rae1 $15 {[%emt 0:00:20]} Rd6 {[%emt 0:00:41]} 36. Re3 {[%emt 0:00:32]} Qh6 $1 {[%emt 0:01:27]} 37. Rg1+ {[%emt 0:00:37]} Rg6 {[%emt 0:00:11]} ({Vorzuziehen ist} 37... Kf8 $15 38. Rxe4 dxe4 39. Qxe4 Qh5) 38. Rxg6+ $11 {[%emt 0:00:22]} (38. Qxd5 $2 Nxf2#) 38... Qxg6 {[%emt 0:00:01]} 39. Qf1 {[%emt 0:00:08]} (39. Qxd5 $2 Nxf2#) 39... Qh5 {[%emt 0:00:30]} 40. Qg2+ {[%emt 0:00:20]} Kf8 {[%emt 0:00:01]} 41. c4 {[%emt 0:00:04]} dxc4 {[%emt 0:00:03]} 42. bxc4 {[%emt 0:00:00]} (42. Rxe4 {vereinfacht} Rxf3 43. Rxc4 Qf5 44. Kg1) 42... f5 {[%emt 0:00:09]} 43. Ng1 {[%emt 0:00:55] [#]} (43. Kg1 $11) 43... Rxe3 {[%emt 0:00:05]} (43... Rxh2+ $1 $17 44. Qxh2 Nxf2+ 45. Kg2 Qxh2+ 46. Kxh2 Ng4+ 47. Kg3 Nxe3) 44. fxe3 $11 {[%emt 0:00:00]} Qh4 {[%emt 0:00:18]} 45. Qb2 {[%emt 0:00:12]} b6 {[%emt 0:00:10]} 46. Qe5 {[%emt 0:00:13]} Qg5 {[%emt 0:00:25]} (46... Qf2 $11) 47. Qb8+ $14 {[%emt 0:00:06]} Ke7 {[%emt 0:00:02]} 48. Qxa7+ {[%emt 0:00:01]} Ke8 {[%emt 0:00:03]} 49. Qb8+ {[%emt 0:00:04]} (49. Qxb6 $2 Nf2#) 49... Kd7 {[%emt 0:00:01]} 50. Qb7+ {[%emt 0:00:03]} (50. Qxb6 $2 Nf2#) 50... Ke8 {[%emt 0:00:06]} 51. Qc8+ {[%emt 0:00:07]} (51. Qxb6 $2 Nf2#) 51... Ke7 {[%emt 0:00:01]} 52. Qc7+ $1 {[%emt 0:00:01]} Ke8 {[%emt 0:00:07]} 53. Qf4 {[%emt 0:00:14]} (53. Qxb6 $2 Nf2#) 53... Qg6 {[%emt 0:00:35]} (53... Qf6 $16) 54. Ne2 $18 {[%emt 0:00:15]} Qh5 {[%emt 0:00:25]} (54... Qe6 {ist wohl besser.} 55. Ng3 Nxg3+ 56. hxg3 Kd7) 55. Nd4 $18 {[%emt 0:00:04]} Qd1+ {[%emt 0:00:11]} 56. Kg2 {[%emt 0:00:01]} Qd2+ $2 {[%emt 0:00:03]} (56... Qg4+ 57. Qxg4 fxg4) 57. Kh3 $18 {[%emt 0:00:02]} Nf2+ {[%emt 0:00:13]} 58. Kh4 {[%emt 0:00:10]} Nd3 {[%emt 0:00:11]} 59. Qb8+ {[%emt 0:00:09]} (59. Qxf5 Qxh2+ 60. Qh3 (60. Kg5 Qg3+ 61. Kf6 Qh4+ 62. Kg7 Qe7+ 63. Kg8 Ne5 $14) 60... Qxh3+ 61. Kxh3 Ne5 $16) 59... Kf7 {[%emt 0:00:01]} 60. Qc7+ {[%emt 0:00:01]} Kg8 {[%emt 0:00:01]} 61. Qg3+ {[%emt 0:00:02]} (61. Ne6 $142 Qf2+ 62. Kh5 (62. Qg3+ Qxg3+ 63. hxg3 Kf7 $16) 62... Qf3+ 63. Kg6 Qg2+ 64. Ng5 (64. Kxf5 Qh3+ 65. Kf6 Qh6+ 66. Ke7 Qh7+ 67. Kd8 Qh6 $18) 64... Qc6+ 65. Qxc6 Ne5+ 66. Kxf5 Nxc6 67. Ne4) 61... Kf7 $18 {[%emt 0:00:04]} 62. Nxf5 {[%emt 0:00:03]} Qxa2 {[%emt 0:00:07]} (62... Qf2 $18 63. Qxf2 Nxf2) 63. Kg5 {[%emt 0:00:45]} Qa7 {[%emt 0:00:21]} 64. Qd6 {[%emt 0:00:02]} Nc5 {[%emt 0:00:02]} 65. Qf6+ {[%emt 0:00:05]} Ke8 {[%emt 0:00:03]} 66. Qh8+ {[%emt 0:00:02]} 1-0

[Event "American Cup Open Elimination 2024"]
[Site "Saint Louis"]
[Date "2024.03.17"]
[Round "3.4"]
[White "Caruana, Fabiano"]
[Black "So, Wesley"]
[Result "1/2-1/2"]
[ECO "C67"]
[WhiteElo "2804"]
[BlackElo "2789"]
[Annotator "TA"]
[PlyCount "83"]
[EventDate "2024.03.11"]
[EventType "k.o."]
[EventCountry "USA"]
[SourceTitle "playchess.com"]
[Source "ChessBase"]
[SourceQuality "1"]
[TimeControl "1500+10"]

{[%evp 18,83,13,13,14,18,20,15,22,16,16,6,6,9,0,0,0,0,0,0,0,0,0,0,0,0,7,0,7,10,14,4,17,14,14,0,0,0,0,0,0,0,0,0,0,0,0,0,0,0,0,0,0,0,0,0,0,0,0,0,0,0,0,0,0,0,0,0]} 1. e4 {[%emt 0:10:01]} e5 {[%emt 0:10:02]} 2. Nf3 {[%emt 0:00:01]} Nc6 {[%emt 0:00:01]} 3. Bb5 {[%emt 0:00:01]} Nf6 {[%emt 0:00:02]} 4. O-O {[%emt 0:00:02][%cal Bh1f1,Bf1e1,Be1e5][%mdl 32]} Nxe4 {[%emt 0:00:01]} 5. Re1 {[%emt 0:00:01]} Nd6 {[%emt 0:00:01]} 6. Nxe5 {[%emt 0:00:02]} Be7 {[%emt 0:00:01]} 7. Bf1 {[%emt 0:00:01]} Nxe5 {[%emt 0:00:02]} 8. Rxe5 {[%emt 0:00:02]} O-O {[%emt 0:00:05]} 9. d4 {[%emt 0:00:01]} Bf6 {[%emt 0:00:04]} 10. Re1 {[%emt 0:00:02] The position is equal.} Re8 {[%emt 0:00:01]} 11. Bf4 {[%emt 0:00:01]} Rxe1 {[%emt 0:00:02]} 12. Qxe1 {[%emt 0:00:01]} Ne8 {[%emt 0:00:01]} 13. c3 {[%emt 0:00:04]} d5 {[%emt 0:00:03]} 14. Bd3 {[%emt 0:00:06]} g6 {[%emt 0:00:04]} 15. Nd2 {[%emt 0:00:02][%cal Bb1d2,Bd2f3,Bf3e5][%mdl 32]} Ng7 {[%emt 0:00:08]} 16. Bh6 {[%emt 0:00:12]} Bg5 {[%emt 0:02:18]} 17. Bxg5 {[%emt 0:00:08]} Qxg5 {[%emt 0:00:01]} 18. Nf3 {[%emt 0:00:04]} Qf6 {[%emt 0:00:17]} 19. Qd2 {[%emt 0:00:28]} Bf5 {[%emt 0:00:13]} 20. Bf1 {[%emt 0:00:41]} Re8 {[%emt 0:00:20]} 21. Qh6 {[%emt 0:00:38]} Nh5 {[%emt 0:00:43]} 22. Ne5 {[%emt 0:00:45]} Qg7 {[%emt 0:01:05]} 23. Qd2 {[%emt 0:00:01]} f6 {[%emt 0:00:14]} 24. Nd3 {[%emt 0:00:02]} Bxd3 {[%emt 0:00:18]} 25. Bxd3 {[%emt 0:00:02]} Qe7 {[%emt 0:00:44]} 26. g3 {[%emt 0:01:25]} f5 {[%emt 0:00:40]} 27. a4 {[%emt 0:01:13][%cal Ba2a4,Ba4a5,Ba5a6][%mdl 32]} Kg7 {[%emt 0:01:34]} 28. a5 {[%emt 0:00:04]} c6 {[%emt 0:00:12]} 29. a6 {[%emt 0:00:20]} b6 {[%emt 0:00:42]} 30. c4 {[%emt 0:00:19]} dxc4 {[%emt 0:00:15]} 31. Bxc4 {[%emt 0:00:01]} Nf6 {[%emt 0:00:17]} 32. Bf1 {[%emt 0:00:10]} Ne4 {[%emt 0:00:51]} 33. Qc2 {[%emt 0:01:31]} Qf6 {[%emt 0:00:25]} 34. Rd1 {[%emt 0:01:13]} Rd8 {[%emt 0:00:12]} 35. Bg2 {[%emt 0:00:18]} Rxd4 {[%emt 0:00:14]} 36. Bxe4 {[%emt 0:00:15]} fxe4 {[%emt 0:02:46]} 37. Rxd4 {[%emt 0:00:01]} Qxd4 {[%emt 0:00:01]} 38. Qxc6 $11 {[%emt 0:00:02] KQ-KQ} Qd1+ {[%emt 0:00:03]} 39. Kg2 {[%emt 0:00:00] [#] Black must now prevent Qb7+.} Qf3+ {[%emt 0:00:01]} 40. Kg1 {[%emt 0:00:01]} Qd1+ {[%emt 0:00:01]} 41. Kg2 {[%emt 0:00:01]} Qf3+ {[%emt 0:00:01]} 42. Kg1 {[%emt 0:00:02] Not much happened in this game.   Weighted Error Value: White=0.01 (flawless) /Black=0.01 (flawless) .  OK:         	White=16    	Black=16} 1/2-1/2